[Event "*** Titled Tuesday Blitz"]
[Site "Chess.com"]
[Date "2021.03.09"]
[Round "11"]
[White "Mbneu"]
[Black "SergeyShtyka"]
[Result "1-0"]
[WhiteElo "2294"]
[BlackElo "2407"]
[TimeControl "180+1"]
[EndTime "12:05:53 PST"]
[Termination "Mbneu won by checkmate"]

1. d4 {[%clk 0:03:00.9]} 1... c5 {[%clk 0:03:00.9]} 2. d5 {[%clk 0:03:00.5]}
2... e5 {[%clk 0:03:01.2]} 3. g3 {[%clk 0:02:58.8]} 3... d6 {[%clk 0:03:01.5]}
4. Bg2 {[%clk 0:02:58.9]} 4... Be7 {[%clk 0:03:01.1]} 5. e4 {[%clk 0:02:59.2]}
5... Bg5 {[%clk 0:03:00.3]} 6. Ne2 {[%clk 0:02:59.1]} 6... Bxc1 {[%clk
0:02:59.7]} 7. Qxc1 {[%clk 0:02:59.6]} 7... Nf6 {[%clk 0:03:00.3]} 8. O-O {[%clk
0:02:57.8]} 8... O-O {[%clk 0:03:00.4]} 9. Nd2 {[%clk 0:02:56.9]} 9... Nbd7
{[%clk 0:02:58.9]} 10. f4 {[%clk 0:02:56.8]} 10... exf4 {[%clk 0:02:58.1]} 11.
gxf4 {[%clk 0:02:56.2]} 11... Re8 {[%clk 0:02:58]} 12. Ng3 {[%clk 0:02:53.2]}
12... Nf8 {[%clk 0:02:53.8]} 13. a4 {[%clk 0:02:47.9]} 13... Ng6 {[%clk
0:02:53.1]} 14. Nc4 {[%clk 0:02:32.7]} 14... b6 {[%clk 0:02:44.8]} 15. Ne3
{[%clk 0:02:24.8]} 15... Ba6 {[%clk 0:02:38.5]} 16. Rf2 {[%clk 0:02:24.1]} 16...
Qc7 {[%clk 0:02:30.8]} 17. c4 {[%clk 0:02:21.3]} 17... Bc8 {[%clk 0:02:19]} 18.
Qc3 {[%clk 0:02:16.3]} 18... Bd7 {[%clk 0:02:13]} 19. Re1 {[%clk 0:02:13]} 19...
a6 {[%clk 0:02:12.1]} 20. Nef5 {[%clk 0:02:10.7]} 20... Bxa4 {[%clk 0:02:04.9]}
21. Nxg7 {[%clk 0:01:57]} 21... Ng4 {[%clk 0:01:57.2]} 22. N7h5 {[%clk
0:01:52.6]} 22... Nxf2 {[%clk 0:01:55.5]} 23. Qg7# {[%clk 0:01:51.2]} 1-0

[Event "*** Titled Tuesday Blitz"]
[Site "Chess.com"]
[Date "2021.03.09"]
[Round "11"]
[White "Duhless"]
[Black "AlexeiShirov"]
[Result "1-0"]
[WhiteElo "3032"]
[BlackElo "2865"]
[TimeControl "180+1"]
[EndTime "12:06:11 PST"]
[Termination "Duhless won by resignation"]

1. d4 {[%clk 0:03:00.9]} 1... d5 {[%clk 0:02:59.9]} 2. c4 {[%clk 0:03:00.4]}
2... c6 {[%clk 0:03:00.1]} 3. Nf3 {[%clk 0:02:59.7]} 3... Nf6 {[%clk 0:03:00.1]}
4. Nc3 {[%clk 0:02:59.7]} 4... e6 {[%clk 0:03:00.2]} 5. g3 {[%clk 0:02:59.9]}
5... dxc4 {[%clk 0:03:00.3]} 6. Bg2 {[%clk 0:02:59.2]} 6... b5 {[%clk
0:03:00.2]} 7. Ne5 {[%clk 0:02:58.8]} 7... a6 {[%clk 0:03:00.1]} 8. O-O {[%clk
0:02:58.4]} 8... Bb7 {[%clk 0:02:59.6]} 9. b3 {[%clk 0:02:58.4]} 9... b4 {[%clk
0:02:59.6]} 10. Ne4 {[%clk 0:02:54.2]} 10... c3 {[%clk 0:02:58.5]} 11. Ng5
{[%clk 0:02:52.6]} 11... Rg8 {[%clk 0:02:44.5]} 12. Nexf7 {[%clk 0:02:41.6]}
12... Qe7 {[%clk 0:02:42]} 13. Bf4 {[%clk 0:02:35.9]} 13... Qxf7 {[%clk
0:02:20.1]} 14. Nxf7 {[%clk 0:02:35.2]} 14... Kxf7 {[%clk 0:02:20.3]} 15. a3
{[%clk 0:02:32]} 15... Nbd7 {[%clk 0:02:18.8]} 16. axb4 {[%clk 0:02:29.1]} 16...
Bxb4 {[%clk 0:02:18.2]} 17. e4 {[%clk 0:02:28.2]} 17... a5 {[%clk 0:02:16.7]}
18. Qc2 {[%clk 0:02:22.3]} 18... Ba6 {[%clk 0:02:10.9]} 19. Rfe1 {[%clk
0:02:21.9]} 19... Rac8 {[%clk 0:02:07.4]} 20. Bh3 {[%clk 0:02:18.6]} 20... g6
{[%clk 0:02:05.5]} 21. d5 {[%clk 0:02:17.1]} 21... Nc5 {[%clk 0:01:55.2]} 22.
dxe6+ {[%clk 0:02:00.3]} 22... Nxe6 {[%clk 0:01:54.5]} 23. Be5 {[%clk
0:02:00.2]} 23... c5 {[%clk 0:01:52.3]} 24. Bxe6+ {[%clk 0:01:58]} 24... Kxe6
{[%clk 0:01:51.4]} 25. Bxc3 {[%clk 0:01:58.9]} 25... Ng4 {[%clk 0:01:50]} 26.
Bxb4 {[%clk 0:01:54.2]} 26... cxb4 {[%clk 0:01:49.3]} 27. Qd1 {[%clk 0:01:54.2]}
1-0

[Event "*** Titled Tuesday Blitz"]
[Site "Chess.com"]
[Date "2021.03.09"]
[Round "11"]
[White "Pantata007"]
[Black "Maddie"]
[Result "1-0"]
[WhiteElo "2281"]
[BlackElo "2074"]
[TimeControl "180+1"]
[EndTime "12:06:31 PST"]
[Termination "Pantata007 won by resignation"]

1. d4 {[%clk 0:02:57.8]} 1... d5 {[%clk 0:02:58.9]} 2. c4 {[%clk 0:02:57.4]}
2... c6 {[%clk 0:02:58.5]} 3. Nc3 {[%clk 0:02:57.3]} 3... Nf6 {[%clk 0:02:58.6]}
4. e3 {[%clk 0:02:57.1]} 4... e6 {[%clk 0:02:44.9]} 5. Nf3 {[%clk 0:02:56.3]}
5... Be7 {[%clk 0:02:45.2]} 6. Bd3 {[%clk 0:02:55.6]} 6... O-O {[%clk
0:02:45.7]} 7. O-O {[%clk 0:02:54.3]} 7... dxc4 {[%clk 0:02:46]} 8. Bxc4 {[%clk
0:02:53.7]} 8... Nbd7 {[%clk 0:02:44.5]} 9. e4 {[%clk 0:02:51.8]} 9... Nb6
{[%clk 0:02:44.6]} 10. Bd3 {[%clk 0:02:46.2]} 10... c5 {[%clk 0:02:41.9]} 11.
Be3 {[%clk 0:02:19.4]} 11... cxd4 {[%clk 0:02:34.6]} 12. Bxd4 {[%clk 0:02:18.1]}
12... Bd7 {[%clk 0:02:33.6]} 13. Qe2 {[%clk 0:02:02.1]} 13... Bc6 {[%clk
0:02:27.1]} 14. Rfd1 {[%clk 0:01:58.3]} 14... Qc7 {[%clk 0:02:23]} 15. Rac1
{[%clk 0:01:57.1]} 15... Rad8 {[%clk 0:02:21.1]} 16. h3 {[%clk 0:01:43.5]} 16...
a6 {[%clk 0:02:12.3]} 17. Qe3 {[%clk 0:01:32.8]} 17... Nbd7 {[%clk 0:02:04.1]}
18. e5 {[%clk 0:01:31.4]} 18... Nd5 {[%clk 0:01:53.7]} 19. Nxd5 {[%clk
0:01:30.4]} 19... exd5 {[%clk 0:01:54.6]} 20. e6 {[%clk 0:01:25.5]} 20... fxe6
{[%clk 0:01:50]} 21. Qxe6+ {[%clk 0:01:24]} 21... Kh8 {[%clk 0:01:50.2]} 22.
Qxe7 {[%clk 0:01:21.1]} 22... Rde8 {[%clk 0:01:49.3]} 1-0

[Event "*** Titled Tuesday Blitz"]
[Site "Chess.com"]
[Date "2021.03.09"]
[Round "11"]
[White "CzechmVIII"]
[Black "pfalcon1949"]
[Result "1-0"]
[WhiteElo "2243"]
[BlackElo "2057"]
[TimeControl "180+1"]
[EndTime "12:06:41 PST"]
[Termination "CzechmVIII won by resignation"]

1. e4 {[%clk 0:03:00.9]} 1... c5 {[%clk 0:02:59.6]} 2. Nf3 {[%clk 0:03:00.9]}
2... Nc6 {[%clk 0:02:59.5]} 3. Nc3 {[%clk 0:03:00.3]} 3... e5 {[%clk 0:02:57.1]}
4. Bc4 {[%clk 0:02:59.3]} 4... Be7 {[%clk 0:02:56.4]} 5. d3 {[%clk 0:02:59.5]}
5... Nf6 {[%clk 0:02:56.5]} 6. Ng5 {[%clk 0:02:56.8]} 6... O-O {[%clk
0:02:51.9]} 7. h4 {[%clk 0:02:56.9]} 7... a6 {[%clk 0:02:46.6]} 8. Nd5 {[%clk
0:02:48.5]} 8... b5 {[%clk 0:02:44.1]} 9. Nxf6+ {[%clk 0:02:06.3]} 9... Bxf6
{[%clk 0:02:38.6]} 10. Qh5 {[%clk 0:01:55.6]} 10... h6 {[%clk 0:02:09.6]} 11.
Bxf7+ {[%clk 0:01:31.3]} 11... Kh8 {[%clk 0:02:02.7]} 12. Qg6 {[%clk 0:01:21]}
12... Bxg5 {[%clk 0:01:53.7]} 13. hxg5 {[%clk 0:01:21]} 13... Ne7 {[%clk
0:01:45.7]} 14. Rxh6+ {[%clk 0:00:55.7]} 1-0

[Event "*** Titled Tuesday Blitz"]
[Site "Chess.com"]
[Date "2021.03.09"]
[Round "11"]
[White "Grineva_Marianna"]
[Black "jovencata"]
[Result "0-1"]
[WhiteElo "2270"]
[BlackElo "2196"]
[TimeControl "180+1"]
[EndTime "12:07:34 PST"]
[Termination "jovencata won by checkmate"]

1. e4 {[%clk 0:03:00.9]} 1... a6 {[%clk 0:02:59.9]} 2. Nf3 {[%clk 0:03:00.9]}
2... b5 {[%clk 0:03:00.8]} 3. d4 {[%clk 0:03:01.4]} 3... Bb7 {[%clk 0:03:01.5]}
4. Bd3 {[%clk 0:03:01.1]} 4... Nf6 {[%clk 0:03:01.4]} 5. O-O {[%clk 0:03:01.4]}
5... Nxe4 {[%clk 0:03:00.7]} 6. Re1 {[%clk 0:03:01.7]} 6... Nf6 {[%clk
0:02:59.7]} 7. a4 {[%clk 0:02:58.3]} 7... b4 {[%clk 0:02:59.2]} 8. Bd2 {[%clk
0:02:55.4]} 8... e6 {[%clk 0:02:58.3]} 9. Ne5 {[%clk 0:02:52.2]} 9... Be7 {[%clk
0:02:56.1]} 10. f4 {[%clk 0:02:49.9]} 10... O-O {[%clk 0:02:55.2]} 11. f5 {[%clk
0:02:48.5]} 11... Nc6 {[%clk 0:02:51.7]} 12. Nf3 {[%clk 0:02:47.9]} 12... exf5
{[%clk 0:02:26.6]} 13. Bxf5 {[%clk 0:02:46]} 13... a5 {[%clk 0:02:17.2]} 14. Be3
{[%clk 0:02:36.5]} 14... Bd6 {[%clk 0:02:07.4]} 15. h3 {[%clk 0:02:34]} 15...
Ne7 {[%clk 0:02:07.2]} 16. Bd3 {[%clk 0:02:33.1]} 16... Ned5 {[%clk 0:02:06.8]}
17. Bf2 {[%clk 0:02:31.4]} 17... Re8 {[%clk 0:02:04.3]} 18. Nbd2 {[%clk
0:02:30.8]} 18... Nf4 {[%clk 0:02:03]} 19. Bc4 {[%clk 0:02:25.6]} 19... N6d5
{[%clk 0:02:01.1]} 20. Ne4 {[%clk 0:02:21.1]} 20... Rxe4 {[%clk 0:01:39.1]} 21.
Rxe4 {[%clk 0:02:18.7]} 21... Qf6 {[%clk 0:01:39.6]} 22. Qe1 {[%clk 0:02:11.1]}
22... Nb6 {[%clk 0:01:22.9]} 23. Bh4 {[%clk 0:02:09]} 23... Qg6 {[%clk
0:01:13.4]} 24. Re8+ {[%clk 0:02:05.2]} 24... Bf8 {[%clk 0:01:02.9]} 25. Bd3
{[%clk 0:01:08.4]} 25... Qxg2# {[%clk 0:01:01.1]} 0-1

[Event "*** Titled Tuesday Blitz"]
[Site "Chess.com"]
[Date "2021.03.09"]
[Round "11"]
[White "ChrisTool2"]
[Black "LamaChampetre"]
[Result "1-0"]
[WhiteElo "2350"]
[BlackElo "2229"]
[TimeControl "180+1"]
[EndTime "12:07:40 PST"]
[Termination "ChrisTool2 won by resignation"]

1. e4 {[%clk 0:03:00.9]} 1... c5 {[%clk 0:02:40.8]} 2. Nf3 {[%clk 0:03:00.2]}
2... g6 {[%clk 0:02:39.3]} 3. d4 {[%clk 0:03:01.1]} 3... cxd4 {[%clk 0:02:40]}
4. Nxd4 {[%clk 0:03:02]} 4... Nc6 {[%clk 0:02:40.3]} 5. Nc3 {[%clk 0:03:02.2]}
5... Bg7 {[%clk 0:02:39]} 6. Be3 {[%clk 0:03:02.6]} 6... Nf6 {[%clk 0:02:38.9]}
7. Nxc6 {[%clk 0:03:02.4]} 7... bxc6 {[%clk 0:02:38.3]} 8. e5 {[%clk 0:03:03.3]}
8... Ng8 {[%clk 0:02:36.8]} 9. Bd4 {[%clk 0:03:00.8]} 9... f6 {[%clk 0:02:31.4]}
10. f4 {[%clk 0:02:53.3]} 10... Qa5 {[%clk 0:02:30.2]} 11. e6 {[%clk 0:02:50.5]}
11... d5 {[%clk 0:02:15]} 12. f5 {[%clk 0:02:42.1]} 12... Nh6 {[%clk 0:02:07.6]}
13. Bd3 {[%clk 0:02:36.7]} 13... c5 {[%clk 0:01:03.7]} 14. Bf2 {[%clk
0:02:27.8]} 14... d4 {[%clk 0:00:54.1]} 15. Qf3 {[%clk 0:02:18]} 15... dxc3
{[%clk 0:00:45.4]} 16. Qc6+ {[%clk 0:01:51.8]} 16... Kd8 {[%clk 0:00:40.9]} 17.
O-O-O {[%clk 0:01:42.7]} 17... Nxf5 {[%clk 0:00:15.1]} 18. Bxf5+ {[%clk
0:01:32.4]} 1-0

[Event "*** Titled Tuesday Blitz"]
[Site "Chess.com"]
[Date "2021.03.09"]
[Round "11"]
[White "kleopl"]
[Black "enriquebutti"]
[Result "1-0"]
[WhiteElo "2470"]
[BlackElo "2237"]
[TimeControl "180+1"]
[EndTime "12:07:50 PST"]
[Termination "kleopl won by resignation"]

1. c4 {[%clk 0:03:00.9]} 1... e5 {[%clk 0:02:59.1]} 2. Nc3 {[%clk 0:03:00.9]}
2... Nc6 {[%clk 0:02:58.4]} 3. Nf3 {[%clk 0:03:00.6]} 3... g6 {[%clk 0:02:57.2]}
4. e3 {[%clk 0:02:59.5]} 4... Bg7 {[%clk 0:02:56.1]} 5. d4 {[%clk 0:02:59.5]}
5... d6 {[%clk 0:02:55.8]} 6. Be2 {[%clk 0:02:57.2]} 6... Nge7 {[%clk 0:02:48]}
7. O-O {[%clk 0:02:56.6]} 7... O-O {[%clk 0:02:47.1]} 8. b3 {[%clk 0:02:54.3]}
8... h6 {[%clk 0:02:45.7]} 9. Bb2 {[%clk 0:02:54.2]} 9... f5 {[%clk 0:02:41.7]}
10. Rc1 {[%clk 0:02:52.4]} 10... e4 {[%clk 0:02:40.7]} 11. Nd2 {[%clk
0:02:51.2]} 11... g5 {[%clk 0:02:37.3]} 12. f3 {[%clk 0:02:47.6]} 12... exf3
{[%clk 0:02:36.3]} 13. Bxf3 {[%clk 0:02:46.8]} 13... Ng6 {[%clk 0:02:34.3]} 14.
Bh5 {[%clk 0:02:30.9]} 14... Nce7 {[%clk 0:02:29.8]} 15. Qc2 {[%clk 0:02:15.2]}
15... c6 {[%clk 0:02:27.2]} 16. d5 {[%clk 0:02:11.2]} 16... c5 {[%clk
0:02:22.4]} 17. Rce1 {[%clk 0:02:09.1]} 17... Be5 {[%clk 0:02:18.1]} 18. Nf3
{[%clk 0:02:04.3]} 18... Bg7 {[%clk 0:02:13.7]} 19. Kh1 {[%clk 0:01:53.3]} 19...
g4 {[%clk 0:02:12.2]} 20. Nd2 {[%clk 0:01:50.2]} 20... Be5 {[%clk 0:02:10.5]}
21. Ne2 {[%clk 0:01:47.4]} 21... Bxb2 {[%clk 0:02:06.8]} 22. Qxb2 {[%clk
0:01:48.3]} 22... Ne5 {[%clk 0:02:06.1]} 23. Nf4 {[%clk 0:01:46.3]} 23... Rf6
{[%clk 0:02:02.2]} 24. e4 {[%clk 0:01:26.4]} 24... Qf8 {[%clk 0:01:58.4]} 25. g3
{[%clk 0:01:20.8]} 25... Qg7 {[%clk 0:01:56.6]} 26. exf5 {[%clk 0:01:16.5]}
26... Bxf5 {[%clk 0:01:54.4]} 27. Ne4 {[%clk 0:01:11.3]} 27... Bxe4+ {[%clk
0:01:52.2]} 28. Rxe4 {[%clk 0:01:12.2]} 28... Qg5 {[%clk 0:01:46.7]} 29. Qe2
{[%clk 0:01:09.3]} 29... Raf8 {[%clk 0:01:42.8]} 30. Bxg4 {[%clk 0:01:02.4]}
30... Nxg4 {[%clk 0:01:30.8]} 31. Rxe7 {[%clk 0:01:00.9]} 31... R6f7 {[%clk
0:01:27.7]} 32. Qe6 {[%clk 0:00:55.6]} 1-0

[Event "*** Titled Tuesday Blitz"]
[Site "Chess.com"]
[Date "2021.03.09"]
[Round "11"]
[White "Etud-otradnoe"]
[Black "eguindy"]
[Result "1-0"]
[WhiteElo "2333"]
[BlackElo "2435"]
[TimeControl "180+1"]
[EndTime "12:07:56 PST"]
[Termination "Etud-otradnoe won by resignation"]

1. e4 {[%clk 0:03:00.9]} 1... e6 {[%clk 0:02:58.2]} 2. Nf3 {[%clk 0:03:00.2]}
2... d5 {[%clk 0:02:58.4]} 3. Nc3 {[%clk 0:03:00.3]} 3... a6 {[%clk 0:02:57.6]}
4. d4 {[%clk 0:02:56.4]} 4... dxe4 {[%clk 0:02:55.1]} 5. Nxe4 {[%clk 0:02:55.7]}
5... Nd7 {[%clk 0:02:51.6]} 6. Bd3 {[%clk 0:02:47.5]} 6... Ngf6 {[%clk
0:02:51.3]} 7. Nxf6+ {[%clk 0:02:43.5]} 7... gxf6 {[%clk 0:02:49.1]} 8. Bf4
{[%clk 0:02:35.7]} 8... Bd6 {[%clk 0:02:47.5]} 9. Qd2 {[%clk 0:02:35.2]} 9... b5
{[%clk 0:02:42.2]} 10. Be4 {[%clk 0:02:26.7]} 10... Rb8 {[%clk 0:02:42]} 11.
O-O-O {[%clk 0:02:11.7]} 11... Qe7 {[%clk 0:02:38.9]} 12. Rhe1 {[%clk
0:02:05.5]} 12... h5 {[%clk 0:02:28.4]} 13. Bc6 {[%clk 0:01:50.5]} 13... Bb7
{[%clk 0:02:21.5]} 14. Bxb7 {[%clk 0:01:49.3]} 14... Rxb7 {[%clk 0:02:20.9]} 15.
Nh4 {[%clk 0:01:45.4]} 15... Bxf4 {[%clk 0:02:18.8]} 16. Qxf4 {[%clk 0:01:44.8]}
16... Kd8 {[%clk 0:02:07.8]} 17. d5 {[%clk 0:01:28.6]} 17... e5 {[%clk
0:02:06.3]} 18. Qf3 {[%clk 0:01:23.8]} 18... Qc5 {[%clk 0:02:02.6]} 19. d6
{[%clk 0:01:14.1]} 19... c6 {[%clk 0:02:02.1]} 20. Nf5 {[%clk 0:01:07]} 20... b4
{[%clk 0:01:58.9]} 21. Ne7 {[%clk 0:01:03.3]} 21... Rb6 {[%clk 0:01:58.6]} 22.
h4 {[%clk 0:00:43.8]} 22... a5 {[%clk 0:01:57.8]} 23. b3 {[%clk 0:00:40.4]}
23... a4 {[%clk 0:01:54.5]} 24. Re4 {[%clk 0:00:40.3]} 24... axb3 {[%clk
0:01:50.8]} 25. axb3 {[%clk 0:00:36.7]} 25... Ra6 {[%clk 0:01:44.1]} 26. Rc4
{[%clk 0:00:36.6]} 26... Qa5 {[%clk 0:01:35.6]} 27. Nxc6+ {[%clk 0:00:34.3]}
27... Rxc6 {[%clk 0:01:30.2]} 28. Qxc6 {[%clk 0:00:34.2]} 1-0

[Event "*** Titled Tuesday Blitz"]
[Site "Chess.com"]
[Date "2021.03.09"]
[Round "11"]
[White "kingnb"]
[Black "NefeLV"]
[Result "1-0"]
[WhiteElo "2566"]
[BlackElo "1855"]
[TimeControl "180+1"]
[EndTime "12:07:59 PST"]
[Termination "kingnb won by resignation"]

1. d4 {[%clk 0:03:00.9]} 1... d5 {[%clk 0:02:49]} 2. Nf3 {[%clk 0:03:01.8]} 2...
Nf6 {[%clk 0:02:36.9]} 3. e3 {[%clk 0:03:01]} 3... g6 {[%clk 0:02:36.9]} 4. Be2
{[%clk 0:02:36.6]} 4... Bg7 {[%clk 0:02:37.8]} 5. O-O {[%clk 0:02:37.5]} 5...
O-O {[%clk 0:02:37.5]} 6. b4 {[%clk 0:02:38.1]} 6... c6 {[%clk 0:02:37.4]} 7.
Nbd2 {[%clk 0:02:36.8]} 7... Nbd7 {[%clk 0:02:37.8]} 8. Bb2 {[%clk 0:02:36]}
8... Ne8 {[%clk 0:02:35.4]} 9. c4 {[%clk 0:02:35.8]} 9... f6 {[%clk 0:02:31.3]}
10. Rc1 {[%clk 0:02:33.1]} 10... e5 {[%clk 0:02:30.5]} 11. cxd5 {[%clk
0:02:32.9]} 11... cxd5 {[%clk 0:02:29.5]} 12. Qb3 {[%clk 0:02:33.1]} 12... Nc7
{[%clk 0:02:20.5]} 13. e4 {[%clk 0:02:22.7]} 13... exd4 {[%clk 0:02:14.1]} 14.
exd5 {[%clk 0:02:17.8]} 14... Kh8 {[%clk 0:02:13.2]} 15. d6 {[%clk 0:02:07.5]}
15... Ne8 {[%clk 0:02:07.4]} 16. Nxd4 {[%clk 0:02:07.5]} 16... Ne5 {[%clk
0:02:00.2]} 17. Ne4 {[%clk 0:02:05.9]} 17... Nxd6 {[%clk 0:01:57.5]} 18. Nc5
{[%clk 0:02:05.1]} 18... Qb6 {[%clk 0:01:50.7]} 19. Rfd1 {[%clk 0:02:03.4]}
19... Ndf7 {[%clk 0:01:43.3]} 20. a4 {[%clk 0:01:56.2]} 20... Bg4 {[%clk
0:01:37]} 21. a5 {[%clk 0:01:54.7]} 21... Qd8 {[%clk 0:01:13.1]} 22. Nde6 {[%clk
0:01:46.9]} 22... Qe7 {[%clk 0:01:11.1]} 23. Bxg4 {[%clk 0:01:44.5]} 23... Nxg4
{[%clk 0:01:07.5]} 24. Nxg7 {[%clk 0:01:45.4]} 24... Kxg7 {[%clk 0:01:01.8]} 25.
Ne6+ {[%clk 0:01:35.5]} 25... Kg8 {[%clk 0:01:00.5]} 26. Rc7 {[%clk 0:01:32.2]}
26... Qe8 {[%clk 0:00:44.2]} 27. Rdd7 {[%clk 0:01:28.8]} 27... Qxe6 {[%clk
0:00:34.8]} 28. Qxe6 {[%clk 0:01:26.9]} 28... Rae8 {[%clk 0:00:35.7]} 29. Rxf7
{[%clk 0:01:26.5]} 1-0

[Event "*** Titled Tuesday Blitz"]
[Site "Chess.com"]
[Date "2021.03.09"]
[Round "11"]
[White "kidagent"]
[Black "Mazanchenko_Dmitry"]
[Result "0-1"]
[WhiteElo "2309"]
[BlackElo "2180"]
[TimeControl "180+1"]
[EndTime "12:08:00 PST"]
[Termination "Mazanchenko_Dmitry won by resignation"]

1. e4 {[%clk 0:03:00.9]} 1... c5 {[%clk 0:02:59.1]} 2. Nf3 {[%clk 0:03:00.8]}
2... d6 {[%clk 0:02:59.3]} 3. d4 {[%clk 0:03:01]} 3... Nf6 {[%clk 0:02:59.4]} 4.
Nc3 {[%clk 0:02:59.9]} 4... cxd4 {[%clk 0:02:59.1]} 5. Nxd4 {[%clk 0:03:00.8]}
5... Nc6 {[%clk 0:02:58.3]} 6. Bg5 {[%clk 0:02:56.7]} 6... Qb6 {[%clk
0:02:56.4]} 7. Bxf6 {[%clk 0:02:51.8]} 7... gxf6 {[%clk 0:02:55.4]} 8. Nb3
{[%clk 0:02:51.3]} 8... e6 {[%clk 0:02:51.3]} 9. g3 {[%clk 0:02:43.1]} 9... a6
{[%clk 0:02:47.2]} 10. Bg2 {[%clk 0:02:42.8]} 10... Bd7 {[%clk 0:02:46.4]} 11.
O-O {[%clk 0:02:42.4]} 11... Be7 {[%clk 0:02:45.8]} 12. Re1 {[%clk 0:02:40.9]}
12... O-O {[%clk 0:02:45.3]} 13. Qh5 {[%clk 0:02:37.6]} 13... Kh8 {[%clk
0:02:40.4]} 14. Rad1 {[%clk 0:02:31.2]} 14... Ne5 {[%clk 0:02:39.7]} 15. Re2
{[%clk 0:02:10.3]} 15... Rg8 {[%clk 0:02:28]} 16. Kh1 {[%clk 0:02:08.6]} 16...
Rg5 {[%clk 0:02:28]} 17. Qh4 {[%clk 0:02:06.5]} 17... Nc4 {[%clk 0:02:27.5]} 18.
f4 {[%clk 0:01:52.2]} 18... Rg6 {[%clk 0:02:18.6]} 19. Rb1 {[%clk 0:01:46.7]}
19... Re8 {[%clk 0:02:08]} 20. f5 {[%clk 0:01:42]} 20... Rg5 {[%clk 0:02:07.9]}
21. Nd2 {[%clk 0:01:34.8]} 21... Ne5 {[%clk 0:01:51.4]} 22. b3 {[%clk
0:01:29.2]} 22... Rc8 {[%clk 0:01:48.2]} 23. Nd1 {[%clk 0:01:00.5]} 23... Rxc2
{[%clk 0:01:41.1]} 24. Nc4 {[%clk 0:00:51.8]} 24... Rxc4 {[%clk 0:01:39]} 25.
bxc4 {[%clk 0:00:48.4]} 25... Qxb1 {[%clk 0:01:38.4]} 26. Re1 {[%clk 0:00:47.7]}
26... Qb4 {[%clk 0:01:22.7]} 27. Rf1 {[%clk 0:00:43.7]} 27... Qxc4 {[%clk
0:01:18.8]} 28. Ne3 {[%clk 0:00:41.6]} 28... Qd3 {[%clk 0:01:15.7]} 0-1

[Event "*** Titled Tuesday Blitz"]
[Site "Chess.com"]
[Date "2021.03.09"]
[Round "11"]
[White "konradrutkowski"]
[Black "Mr_Sinigami"]
[Result "0-1"]
[WhiteElo "2432"]
[BlackElo "2597"]
[TimeControl "180+1"]
[EndTime "12:08:07 PST"]
[Termination "Mr_Sinigami won by resignation"]

1. d4 {[%clk 0:03:00.9]} 1... Nf6 {[%clk 0:02:59.6]} 2. Nf3 {[%clk 0:03:01.2]}
2... g6 {[%clk 0:02:58.5]} 3. g3 {[%clk 0:03:00.2]} 3... Bg7 {[%clk 0:02:58.8]}
4. Bg2 {[%clk 0:03:01.1]} 4... O-O {[%clk 0:02:58.9]} 5. O-O {[%clk 0:03:02]}
5... d6 {[%clk 0:02:58.8]} 6. Nc3 {[%clk 0:03:02.2]} 6... Nbd7 {[%clk
0:02:58.6]} 7. a4 {[%clk 0:02:57.2]} 7... a5 {[%clk 0:02:55]} 8. e4 {[%clk
0:02:55.4]} 8... e5 {[%clk 0:02:54]} 9. Re1 {[%clk 0:02:55]} 9... Re8 {[%clk
0:02:52.3]} 10. h3 {[%clk 0:02:53.5]} 10... c6 {[%clk 0:02:45.8]} 11. b3 {[%clk
0:02:53.5]} 11... exd4 {[%clk 0:02:38.6]} 12. Nxd4 {[%clk 0:02:51.7]} 12... Nc5
{[%clk 0:02:38.7]} 13. Bb2 {[%clk 0:02:46.9]} 13... Qb6 {[%clk 0:02:34.5]} 14.
Rb1 {[%clk 0:02:40]} 14... Bd7 {[%clk 0:02:27.7]} 15. Kh2 {[%clk 0:02:13.2]}
15... Rad8 {[%clk 0:02:24.5]} 16. f4 {[%clk 0:02:08.7]} 16... Bc8 {[%clk
0:02:23.5]} 17. Ba1 {[%clk 0:02:01.9]} 17... h5 {[%clk 0:02:19.2]} 18. Qd2
{[%clk 0:01:43.7]} 18... Rd7 {[%clk 0:02:17.5]} 19. f5 {[%clk 0:01:22.8]} 19...
Rde7 {[%clk 0:02:13.9]} 20. fxg6 {[%clk 0:01:20.8]} 20... fxg6 {[%clk
0:02:13.7]} 21. Qg5 {[%clk 0:01:14]} 21... Kh7 {[%clk 0:02:12.8]} 22. Rbd1
{[%clk 0:01:06.8]} 22... Ncxe4 {[%clk 0:01:57.2]} 23. Nxe4 {[%clk 0:01:06.4]}
23... Nxe4 {[%clk 0:01:56.6]} 24. Bxe4 {[%clk 0:01:05.5]} 24... Rxe4 {[%clk
0:01:52.4]} 25. Rxe4 {[%clk 0:01:05.4]} 25... Rxe4 {[%clk 0:01:51.9]} 26. Rf1
{[%clk 0:00:52.3]} 26... Qc7 {[%clk 0:01:32.6]} 27. Qd2 {[%clk 0:00:33.1]} 27...
Qd7 {[%clk 0:01:29]} 28. Qg2 {[%clk 0:00:27.8]} 28... Bxd4 {[%clk 0:01:26]} 0-1